bitfinex/quotes_BTCUSD_20251215
["timestamp","ask_amount","ask_price","bid_price","bid_amount"]
[1765815721336,0.00030706,87162.0,87161.0,0.006]
[1765815721337,0.24864485,87162.0,87161.0,0.006]
[1765815721520,1.26737485,87162.0,87161.0,0.006]
[1765815721798,0.13570706,87162.0,87161.0,0.003]
[1765815722011,0.13570706,87162.0,87161.0,0.004]
[1765815722225,0.15429706,87162.0,87161.0,0.001]
[1765815722551,0.17288706,87162.0,87161.0,0.003]
[1765815722981,0.46358706,87162.0,87161.0,0.002]
[1765815723163,1.32818706,87162.0,87161.0,0.002]
[1765815723383,0.77348706,87162.0,87161.0,0.002]
[1765815723589,0.00030706,87162.0,87160.0,0.22946231]
[1765815723947,0.00130706,87162.0,87161.0,0.14791931]
[1765815724161,0.004,87162.0,87161.0,0.05162931]
[1765815724898,0.001,87162.0,87161.0,0.05162931]
[1765815725108,0.01147341,87158.0,87154.0,0.01147394]
[1765815725345,0.0114742,87152.0,87148.0,0.24096853]
[1765815725554,0.02962381,87155.0,87137.0,0.0569]
[1765815725555,0.01147486,87147.0,87137.0,0.00161287]
[1765815725757,0.24097557,87146.0,87142.0,0.01147552]
[1765815725974,0.01147539,87143.0,87137.0,0.01308905]
[1765815726149,0.24097643,87146.0,87142.0,0.01147552]
[1765815726329,0.01147486,87147.0,87143.0,0.01147539]
[1765815726530,0.24097862,87145.0,87144.0,0.02655487]
[1765815727126,0.22950827,87143.0,87141.0,0.01147565]
[1765815727345,0.24098474,87143.0,87137.0,0.01308905]
[1765815727561,0.24098474,87143.0,87138.0,0.2409951]
[1765815727770,0.00030706,87142.0,87141.0,0.22951266]
[1765815727985,0.00030706,87142.0,87137.0,0.01308905]
[1765815727986,0.24737907,87139.0,87137.0,0.00161287]
[1765815728245,0.01147578,87140.0,87129.0,0.24102057]
[1765815728246,0.24101131,87133.0,87129.0,0.24102057]
[1765815728460,0.01147657,87134.0,87130.0,0.24101732]
[1765815728680,0.01147842,87120.0,87117.0,0.2295748]
[1765815728827,0.01771,87121.0,87118.0,0.02550296]
[1765815729029,0.2295697,87120.0,87118.0,0.02550296]
[1765815729232,0.22958158,87115.0,87114.0,0.00249681]
[1765815729417,0.24715158,87115.0,87114.0,0.00249681]
[1765815729616,1.55542158,87115.0,87114.0,0.00249681]
[1765815729908,1.5885802,87115.0,87114.0,0.00249681]
[1765815730116,1.55542158,87115.0,87114.0,0.00249681]
[1765815730326,0.24105656,87117.0,87114.0,0.00218975]
[1765815730533,0.22958131,87116.0,87115.0,0.02547443]
[1765815730739,0.01147789,87124.0,87120.0,0.22956749]
[1765815730945,0.24100917,87134.0,87130.0,0.2295404]
[1765815731154,0.01147697,87131.0,87127.0,0.24102658]
[1765815731359,0.01147736,87128.0,87124.0,0.01147789]
[1765815731563,0.01147697,87131.0,87124.0,0.01147789]
[1765815731694,0.22955623,87125.0,87123.0,0.00161287]
[1765815731899,0.24104487,87121.0,87116.0,0.2295777]
[1765815732719,1.24673158,87115.0,87114.0,0.00218975]
[1765815732920,1.26388158,87115.0,87114.0,0.00218975]
[1765815734893,1.26488158,87115.0,87114.0,0.00218975]
[1765815735273,1.25486158,87115.0,87114.0,0.00218975]
[1765815735683,1.23121158,87115.0,87114.0,0.00218975]
[1765815735905,0.51541158,87115.0,87114.0,0.02651683]
[1765815736104,0.51441158,87115.0,87114.0,0.00218975]
[1765815736266,0.50301158,87115.0,87114.0,0.00218975]
[1765815736490,0.50401158,87115.0,87114.0,0.00218975]
[1765815736679,0.52059158,87115.0,87114.0,0.00218975]
[1765815736891,1.25329158,87115.0,87114.0,0.00218975]
[1765815737197,1.25529158,87115.0,87114.0,0.00218975]
[1765815738195,0.48821158,87115.0,87114.0,0.00218975]
[1765815738535,0.01853,87115.0,87114.0,0.00218975]
[1765815738743,0.03506,87115.0,87114.0,0.00218975]
[1765815738942,0.01853,87115.0,87114.0,0.00218975]
[1765815739568,0.01853,87115.0,87114.0,0.0288124]
[1765815739948,0.01853,87115.0,87114.0,0.00218975]
[1765815740545,0.002,87115.0,87114.0,0.04157975]
[1765815740745,0.002,87115.0,87114.0,0.04319262]
[1765815741191,0.002,87115.0,87114.0,0.12305104]
[1765815741409,0.002,87115.0,87114.0,0.10009262]
[1765815741620,0.002,87115.0,87114.0,0.11302138]
[1765815741831,0.002,87115.0,87114.0,0.00380262]
[1765815742060,0.002,87115.0,87114.0,0.00218975]
[1765815742061,0.0342,87115.0,87114.0,0.00218975]
[1765815742279,1.0342,87115.0,87114.0,0.00218975]
[1765815742497,1.26378158,87115.0,87114.0,0.00218975]
[1765815742914,1.26312378,87115.0,87114.0,0.00218975]
[1765815743127,1.37832378,87115.0,87114.0,0.00218975]
[1765815743335,1.55382378,87115.0,87114.0,0.00218975]
[1765815743540,1.55248158,87115.0,87114.0,0.00218975]
[1765815743743,1.6629892,87115.0,87114.0,0.00218975]
[1765815743948,1.7781892,87115.0,87114.0,0.00218975]
[1765815744151,1.6629892,87115.0,87114.0,0.00218975]
[1765815744529,1.55248158,87115.0,87114.0,0.00218975]
[1765815744933,1.55248158,87115.0,87114.0,0.00318975]
[1765815745341,1.55248158,87115.0,87114.0,0.00218975]
[1765815745709,1.55448158,87115.0,87114.0,0.00218975]
[1765815746934,0.77858158,87115.0,87114.0,0.00218975]
[1765815747216,0.002,87115.0,87114.0,0.00218975]
[1765815747399,0.002,87115.0,87114.0,0.03110722]
[1765815747979,0.01147855,87119.0,87114.0,0.03110722]
[1765815747980,0.24105619,87117.0,87114.0,0.03110722]
[1765815748186,0.01147763,87126.0,87123.0,0.01147802]
[1765815748487,0.01147723,87129.0,87126.0,0.22955234]
[1765815748736,0.01514,87138.0,87126.0,0.22955234]
[1765815748737,0.24100966,87134.0,87131.0,0.01147697]
[1765815749084,0.01147644,87135.0,87130.0,0.0114771]
[1765815749275,0.01514,87147.0,87121.0,0.02781]
[1765815749276,0.01147539,87143.0,87139.0,0.24099405]
[1765815749595,0.01147578,87140.0,87134.0,0.01147657]
[1765815749801,0.01147578,87140.0,87135.0,0.01207534]
[1765815750058,0.2295243,87137.0,87135.0,0.01207534]
[1765815750217,0.22953679,87132.0,87131.0,0.00161287]
[1765815750420,0.22953416,87133.0,87131.0,0.00161287]
[1765815750641,0.22953416,87133.0,87124.0,0.24103541]
[1765815750642,0.01147736,87128.0,87120.0,0.22956792]
[1765815750841,0.01486,87132.0,87120.0,0.01147842]
[1765815750842,0.01147789,87124.0,87120.0,0.01147842]
[1765815751018,0.01147855,87119.0,87116.0,0.24105728]
[1765815751230,0.24103233,87126.0,87121.0,0.22956468]
[1765815751435,0.24103633,87124.0,87121.0,0.24104342]
[1765815751640,0.01147815,87122.0,87117.0,0.0783073]
[1765815751841,0.01147723,87129.0,87122.0,0.01147815]
[1765815752083,0.2295479,87128.0,87124.0,0.24103415]
[1765815752284,0.24102526,87128.0,87125.0,0.02541253]
[1765815752645,0.22955169,87127.0,87125.0,0.02541253]
[1765815753142,0.24103299,87125.0,87122.0,0.01309102]
[1765815753346,0.24102739,87130.0,87122.0,0.01309102]
[1765815753347,0.01147657,87134.0,87123.0,0.01147802]
[1765815753554,0.2295425,87130.0,87127.0,0.24102717]
[1765815753753,0.01147657,87134.0,87128.0,0.24102418]
[1765815753952,0.22952889,87135.0,87122.0,0.00161287]
[1765815754184,0.4393,87136.0,87130.0,0.0114771]
[1765815754398,0.24100027,87137.0,87133.0,0.22953296]
[1765815754661,0.22952889,87135.0,87132.0,0.01147683]
[1765815754830,0.22955471,87126.0,87124.0,0.01147789]
[1765815755033,1.0143,87124.0,87123.0,0.07376413]
[1765815755256,0.2295605,87123.0,87122.0,0.00161287]
[1765815755493,0.01417,87123.0,87122.0,0.00161287]
[1765815755706,0.01147815,87122.0,87117.0,0.01147881]
[1765815755904,0.23370117,87119.0,87116.0,0.24105713]
[1765815756130,0.01147842,87120.0,87117.0,0.22957619]
[1765815756467,0.24104741,87120.0,87118.0,0.04957816]
[1765815756605,0.22958158,87115.0,87114.0,0.00218975]
[1765815756812,0.24361158,87115.0,87114.0,0.00218975]
[1765815757012,0.01403,87115.0,87114.0,0.00218975]
[1765815757217,0.22958158,87115.0,87114.0,0.00218975]
[1765815758121,0.24365158,87115.0,87114.0,0.00218975]
[1765815758512,0.24365158,87115.0,87114.0,0.02766471]
[1765815758715,0.24365158,87115.0,87114.0,0.00218975]
[1765815758909,0.01147776,87125.0,87119.0,0.01147855]
[1765815759108,0.01147697,87131.0,87120.0,0.01147842]
[1765815759314,0.01147749,87127.0,87122.0,0.01147815]
[1765815759553,0.01147776,87125.0,87122.0,0.24103604]
[1765815759750,0.24103363,87125.0,87123.0,0.04836968]
[1765815760136,0.22955787,87124.0,87123.0,0.04836968]
[1765815760338,0.01147802,87123.0,87120.0,0.00161287]
[1765815760753,0.22956328,87122.0,87120.0,0.00161287]
[1765815760951,0.22956577,87121.0,87120.0,0.00161287]
[1765815761457,0.22956577,87121.0,87114.0,0.00218975]
[1765815761458,0.22958158,87115.0,87114.0,0.00218975]
[1765815761677,0.24310158,87115.0,87114.0,0.00218975]
[1765815762100,0.01352,87115.0,87114.0,0.00218975]
[1765815762276,0.24310158,87115.0,87114.0,0.00814859]
[1765815762583,0.24310158,87115.0,87114.0,0.00218975]
[1765815762801,0.22958147,87116.0,87114.0,0.00218975]
[1765815763040,0.22958158,87115.0,87114.0,0.00218975]
[1765815763743,0.22958158,87115.0,87114.0,0.00318975]
[1765815764191,0.24069158,87115.0,87114.0,0.00318975]
[1765815764423,0.25380158,87115.0,87114.0,0.00318975]
[1765815764658,1.25380158,87115.0,87114.0,0.00318975]
[1765815765324,1.25380158,87115.0,87114.0,0.00218975]
[1765815766955,1.6550092,87115.0,87114.0,0.00218975]
[1765815767108,1.54450158,87115.0,87114.0,0.00218975]
[1765815767320,1.65970158,87115.0,87114.0,0.00218975]
[1765815767535,1.54450158,87115.0,87114.0,0.00218975]
[1765815768132,1.66270158,87115.0,87114.0,0.00218975]
[1765815768514,1.6981981,87115.0,87114.0,0.00218975]
[1765815768726,1.80870572,87115.0,87114.0,0.00218975]
[1765815769250,1.69350572,87115.0,87114.0,0.00218975]
[1765815769450,1.80870572,87115.0,87114.0,0.00218975]
[1765815769797,1.80869493,87115.0,87114.0,0.00218975]
[1765815770536,0.80869493,87115.0,87114.0,0.00218975]
[1765815770737,1.80869493,87115.0,87114.0,0.00218975]
[1765815771359,1.58298731,87115.0,87114.0,0.00218975]
[1765815771526,1.69818731,87115.0,87114.0,0.00218975]
[1765815771719,1.46903876,87115.0,87114.0,0.00218975]
[1765815771926,1.42787346,87115.0,87114.0,0.00218975]
[1765815772346,1.41476346,87115.0,87114.0,0.00218975]
[1765815772556,1.41509965,87115.0,87114.0,0.00218975]
[1765815772754,1.39034773,87115.0,87114.0,0.00218975]
[1765815772998,1.41503447,87115.0,87114.0,0.00218975]
[1765815773421,0.02768674,87115.0,87114.0,0.23177397]
[1765815773573,0.003,87115.0,87114.0,0.02881109]
[1765815773778,0.003,87115.0,87114.0,0.00218975]
[1765815773984,0.24817158,87115.0,87114.0,0.00218975]
[1765815774203,0.24817158,87115.0,87083.0,0.01148329]
[1765815774204,0.01148263,87088.0,87083.0,0.01148329]
[1765815774379,0.01148277,87087.0,87083.0,0.01148329]
[1765815774579,0.2296612,87085.0,87084.0,0.0522167]
[1765815774779,0.24114884,87084.0,87080.0,0.01148369]
[1765815774994,0.24114739,87084.0,87080.0,0.24115744]
[1765815775196,0.24114171,87086.0,87082.0,0.24115191]
[1765815775400,0.22966085,87085.0,87082.0,0.24115191]
[1765815775630,0.0114829,87086.0,87083.0,0.23066512]
[1765815775830,0.24113886,87087.0,87084.0,0.31359086]
[1765815776051,0.22966052,87086.0,87084.0,0.07244583]
[1765815776485,0.01148382,87079.0,87076.0,0.25805407]
[1765815776607,0.01148382,87079.0,87076.0,0.02837]
[1765815776814,0.22967956,87078.0,87075.0,0.22968654]
[1765815777198,0.22967956,87078.0,87071.0,0.23009645]
[1765815777199,0.22969194,87074.0,87071.0,0.0004]
[1765815777457,0.01288,87073.0,87071.0,0.0004]
[1765815777660,1.02576,87073.0,87071.0,0.0004]
[1765815780874,1.13626762,87073.0,87071.0,0.0004]
[1765815781071,1.54216762,87073.0,87071.0,0.0004]
[1765815781443,1.36747839,87073.0,87072.0,0.00172311]
[1765815781795,1.48267839,87073.0,87072.0,0.00172311]
[1765815782000,1.48167839,87073.0,87072.0,0.00172311]
[1765815782183,1.48567839,87073.0,87072.0,0.00172311]
[1765815783055,1.37047839,87073.0,87072.0,0.00172311]
[1765815783608,1.3703928,87073.0,87072.0,0.00172311]
[1765815783815,1.4855928,87073.0,87072.0,0.00172311]
[1765815784230,1.32037441,87073.0,87072.0,0.00172311]
[1765815784458,1.31834,87073.0,87072.0,0.00172311]
[1765815785368,1.30652,87073.0,87072.0,0.00172311]
[1765815785571,0.004,87073.0,87072.0,0.00172311]
[1765815785778,0.22967427,87080.0,87072.0,0.00172311]
[1765815785779,0.01148303,87085.0,87080.0,0.22967386]
[1765815785975,1.0,87084.0,87080.0,0.22967386]
[1765815786202,0.8353,87087.0,87084.0,0.01148316]
[1765815786538,0.22965803,87086.0,87084.0,0.00161287]
[1765815786739,0.24113861,87087.0,87085.0,0.008075]
[1765815786861,0.22964552,87091.0,87085.0,0.008075]
[1765815787087,0.22964552,87091.0,87087.0,0.22965492]
[1765815787290,0.01148237,87090.0,87085.0,0.25083025]
[1765815787511,0.01148263,87088.0,87086.0,0.0744617]
[1765815787714,0.01148197,87093.0,87087.0,0.24113767]
[1765815787922,0.0114825,87089.0,87085.0,0.24275519]
[1765815788121,0.0114825,87089.0,87085.0,0.00161287]
[1765815788122,0.22965616,87087.0,87085.0,0.00161287]
[1765815788328,0.24113618,87088.0,87085.0,0.00161287]
[1765815788534,0.01148263,87088.0,87085.0,0.24275629]
[1765815788748,0.2411374,87088.0,87086.0,0.07365449]
[1765815789175,0.0114825,87089.0,87086.0,0.31479446]
[1765815789415,0.22965381,87088.0,87086.0,0.08513739]
[1765815789621,0.23065381,87088.0,87086.0,0.07365449]
[1765815789848,1.0,87072.0,87032.0,0.01149002]
[1765815790057,1.0,87072.0,87022.0,0.0002]
[1765815790058,0.01148844,87044.0,87033.0,0.01148989]
[1765815790262,0.9753749,87060.0,87030.0,0.01149029]
[1765815790263,0.01148936,87037.0,87030.0,0.01149029]
[1765815790469,0.22980053,87032.0,87028.0,0.01149055]
[1765815790678,0.24129627,87030.0,87027.0,0.24291719]
[1765815790884,0.2298035,87031.0,87028.0,0.08557331]
[1765815791089,0.01149002,87032.0,87028.0,0.01310342]
[1765815791382,0.22979824,87033.0,87029.0,0.24129821]
[1765815791595,0.22979824,87033.0,87029.0,0.24291108]
[1765815791798,0.22980127,87032.0,87029.0,0.24291108]
[1765815791948,0.01148976,87034.0,87032.0,0.0025844]
[1765815792150,0.01148976,87034.0,87033.0,0.02573939]
[1765815792781,0.24129249,87032.0,87029.0,0.01310329]
[1765815792989,0.01148976,87034.0,87029.0,0.01410329]
[1765815793193,0.22979312,87035.0,87032.0,0.24129044]
[1765815793399,0.01148883,87041.0,87034.0,0.22979438]
[1765815793599,0.24127143,87039.0,87035.0,0.26567115]
[1765815793806,0.24127143,87039.0,87035.0,0.26728402]
[1765815794102,0.24126673,87041.0,87036.0,0.01148949]
[1765815794453,0.24126169,87043.0,87040.0,0.04775897]
[1765815794659,0.22977474,87042.0,87040.0,0.05041208]
[1765815795482,0.22978569,87038.0,87036.0,0.00161287]
[1765815795617,0.22978733,87037.0,87036.0,0.00161287]
[1765815796036,0.01148751,87051.0,87047.0,0.2297603]
[1765815796235,0.22975829,87048.0,87047.0,0.00161287]
[1765815796437,0.22975829,87048.0,87047.0,0.00825905]
[1765815797755,0.22975829,87048.0,87047.0,0.00161287]
[1765815797968,0.22975829,87048.0,87040.0,0.02618]
[1765815797969,0.22980581,87030.0,87029.0,0.02618]
[1765815798191,0.01149002,87032.0,87029.0,0.02618]
[1765815798192,0.22980408,87031.0,87029.0,0.02618]
[1765815798373,0.02072949,87036.0,87032.0,0.01149002]
[1765815798374,0.01148949,87036.0,87032.0,0.01149002]
[1765815798724,0.01148949,87036.0,87033.0,0.01321229]
[1765815798725,0.22979519,87035.0,87033.0,0.01321229]
[1765815798929,0.24128341,87035.0,87033.0,0.01321229]
[1765815799094,0.22979525,87034.0,87033.0,0.01321229]
[1765815799302,0.22980581,87030.0,87029.0,0.02779287]
[1765815799499,0.24129217,87032.0,87029.0,0.00161287]
[1765815799707,0.22980474,87031.0,87029.0,0.00161287]
[1765815800109,0.22980328,87031.0,87029.0,0.00161287]
[1765815800344,0.2412836,87035.0,87029.0,0.00161287]
[1765815800345,0.22979543,87034.0,87031.0,0.22980295]
[1765815800513,0.22980113,87032.0,87030.0,0.07750963]
[1765815800714,0.22980113,87032.0,87029.0,0.24991168]
[1765815800914,0.22980389,87031.0,87029.0,0.01310329]
[1765815801170,0.24129115,87032.0,87029.0,0.01310329]
[1765815801393,0.22980053,87032.0,87030.0,0.01149029]
[1765815801730,0.24129055,87032.0,87029.0,0.24391161]
[1765815801962,0.24129055,87032.0,87030.0,0.07645948]
[1765815802180,0.01149002,87032.0,87030.0,0.07645948]
[1765815802532,0.01149002,87032.0,87030.0,0.08245948]
[1765815802743,0.22980317,87031.0,87030.0,0.08245948]
[1765815802950,0.22980317,87031.0,87030.0,0.006]
[1765815803150,0.01148989,87033.0,87030.0,0.007]
[1765815803362,0.01148989,87033.0,87030.0,0.06478287]
[1765815803615,0.22980317,87031.0,87030.0,0.00861287]
[1765815803844,0.22980317,87031.0,87030.0,0.00261287]
[1765815804089,0.22980317,87031.0,87030.0,0.02966339]
[1765815804294,0.22980317,87031.0,87030.0,0.03831088]
[1765815805397,0.23810317,87031.0,87030.0,0.01026036]
[1765815805810,0.22980317,87031.0,87030.0,0.01126036]
[1765815806168,0.22980317,87031.0,87030.0,0.01026036]
[1765815806956,0.22980317,87031.0,87030.0,0.00426036]
[1765815807425,0.23783317,87031.0,87030.0,0.00764749]
[1765815807599,0.07380046,87031.0,87030.0,0.00764749]
[1765815808381,1.08170046,87031.0,87030.0,0.00764749]
[1765815810237,1.07380046,87031.0,87030.0,0.00764749]
[1765815810881,0.77210046,87031.0,87030.0,0.00764749]
[1765815811082,0.54060046,87031.0,87030.0,0.00764749]
[1765815811282,0.53257046,87031.0,87030.0,0.00764749]
[1765815811491,0.01148989,87033.0,87030.0,0.00764749]
[1765815811686,0.22980317,87031.0,87030.0,0.04245]
[1765815811919,0.24127434,87038.0,87032.0,0.03584]
[1765815812119,0.02267791,87048.0,87044.0,0.22976885]
[1765815812296,0.0114887,87042.0,87039.0,0.24127107]
[1765815812493,0.01148883,87041.0,87037.0,0.01148936]
[1765815812702,0.22978513,87038.0,87035.0,0.01148963]
[1765815812915,0.22978745,87037.0,87036.0,0.02479041]
[1765815813114,0.24127115,87039.0,87036.0,0.02479041]
[1765815813329,0.01148778,87049.0,87041.0,0.01148883]
[1765815813518,0.01148765,87050.0,87045.0,0.01148831]
[1765815813832,0.01148765,87050.0,87047.0,0.01148804]
[1765815814048,0.2412411,87050.0,87048.0,0.0279339]
[1765815815200,0.01076,87049.0,87048.0,0.003]
[1765815815660,0.2422411,87050.0,87048.0,0.003]
[1765815815875,0.24224124,87050.0,87048.0,0.003]
[1765815816075,0.24124124,87050.0,87048.0,0.003]
[1765815816545,0.01148804,87047.0,87045.0,0.22976571]
[1765815816728,0.001,87049.0,87048.0,0.002]
[1765815817017,0.001,87049.0,87046.0,0.29065252]
[1765815817199,0.22976018,87048.0,87046.0,0.04940094]
[1765815817464,0.24224469,87049.0,87046.0,0.04940094]
[1765815817679,0.22975666,87049.0,87046.0,0.06088911]
[1765815817816,0.22975666,87049.0,87047.0,0.07961537]
[1765815818029,0.01148778,87049.0,87046.0,0.04940094]
[1765815818414,0.01148791,87048.0,87045.0,0.01148831]
[1765815818628,0.24124453,87049.0,87044.0,0.01148844]
[1765815818797,0.24224453,87049.0,87044.0,0.01148844]
[1765815818994,0.24224453,87049.0,87045.0,0.22976358]
[1765815819247,0.001,87049.0,87047.0,0.2297608]
[1765815819390,0.24124066,87050.0,87047.0,0.2297608]
[1765815819391,0.24124066,87050.0,87048.0,0.0482501]
[1765815819601,0.4288,87052.0,87049.0,0.24124204]
[1765815819858,0.01148685,87056.0,87055.0,0.22973981]
[1765815819859,0.4269,87056.0,87055.0,0.22973981]
[1765815819995,0.0411653,87066.0,87059.0,0.22972926]
[1765815819996,0.0247875,87060.0,87059.0,0.22972926]
[1765815820169,0.27204164,87066.0,87059.0,0.22972926]
[1765815820170,0.0247875,87065.0,87064.0,0.22971607]
[1765815820376,0.0247875,87071.0,87068.0,0.01148527]
[1765815820596,0.0102,87072.0,87068.0,0.01148527]
[1765815820597,0.0102,87072.0,87071.0,0.2296976]
[1765815820798,0.02478214,87072.0,87071.0,0.23131047]
[1765815821021,0.2544771,87072.0,87071.0,0.07413066]
[1765815821225,0.22969496,87072.0,87071.0,0.07413066]
[1765815821628,0.22969279,87073.0,87071.0,0.07251779]
[1765815821825,0.22969496,87072.0,87071.0,0.07251779]
[1765815822027,0.01148593,87063.0,87058.0,0.01148659]
[1765815822244,0.01148633,87060.0,87056.0,0.01148685]
[1765815822475,0.01148633,87060.0,87054.0,0.01148712]
[1765815822476,0.01148699,87055.0,87050.0,0.01148765]
[1765815822667,0.24122967,87054.0,87051.0,0.00630835]
[1765815822835,0.22974773,87052.0,87051.0,0.00630835]
[1765815823107,0.24125484,87045.0,87042.0,0.0114887]
[1765815823308,0.22977529,87042.0,87038.0,0.01148923]
[1765815823510,0.22977529,87042.0,87037.0,0.01148936]
[1765815823511,0.22977759,87041.0,87037.0,0.01148936]
[1765815823723,0.24126291,87042.0,87040.0,0.22977907]
[1765815823921,0.24126291,87042.0,87031.0,0.22980142]
[1765815823922,0.22979195,87036.0,87031.0,0.22980142]
[1765815824143,0.01148831,87045.0,87038.0,0.01148923]
[1765815824359,0.0114887,87042.0,87032.0,0.03803002]
[1765815824558,0.01148883,87041.0,87037.0,0.01148936]
[1765815824773,0.01148883,87041.0,87038.0,0.00741115]
[1765815825135,0.0124887,87042.0,87040.0,0.22977921]
[1765815825417,0.22974509,87056.0,87038.0,0.24868499]
[1765815825418,0.22973708,87057.0,87053.0,0.24123215]
[1765815825619,0.24121295,87060.0,87056.0,0.01148685]
[1765815825823,0.24121295,87060.0,87057.0,0.00610011]
[1765815825824,0.2297319,87058.0,87057.0,0.00610011]
[1765815826122,0.01148633,87060.0,87057.0,0.24732103]
[1765815826329,0.01148501,87070.0,87066.0,0.01148553]
[1765815826543,0.0114854,87067.0,87064.0,0.02654]
[1765815826768,0.22971343,87065.0,87064.0,0.02654]
[1765815826938,0.24119355,87067.0,87064.0,0.09791789]
[1765815827138,0.22971221,87066.0,87064.0,0.02654]
[1765815827518,0.22971221,87066.0,87063.0,0.24120381]
[1765815827718,0.22971221,87066.0,87059.0,0.22972689]
[1765815827719,0.24119774,87066.0,87059.0,0.22972689]
[1765815828066,0.24119446,87067.0,87060.0,0.01148633]
[1765815828205,0.01148567,87065.0,87062.0,0.24120221]
[1765815828412,0.01148567,87065.0,87062.0,0.06049861]
[1765815828592,0.0114854,87067.0,87062.0,0.06049861]
[1765815828790,0.0114854,87067.0,87064.0,0.00157527]
[1765815828791,0.22971343,87065.0,87064.0,0.00157527]
[1765815829019,1.22971343,87065.0,87064.0,0.00157527]
[1765815829221,1.26342834,87065.0,87064.0,0.00157527]
[1765815829846,1.26342834,87065.0,87064.0,0.00457527]
[1765815830055,1.26342834,87065.0,87064.0,0.00157527]
[1765815830390,1.25446834,87065.0,87064.0,0.00357527]
[1765815830602,0.1436,87065.0,87064.0,0.00357527]
[1765815830810,0.001,87067.0,87064.0,0.25123458]
[1765815830981,0.22971343,87065.0,87064.0,0.00845744]
[1765815831215,0.23071343,87065.0,87064.0,0.00845744]
[1765815831550,0.0114858,87064.0,87059.0,0.01148646]
[1765815831748,0.01148567,87065.0,87062.0,0.01148606]
[1765815831950,0.08793719,87073.0,87065.0,0.01148567]
[1765815831951,0.01148488,87071.0,87065.0,0.01148567]
[1765815832152,0.22967743,87079.0,87073.0,0.01148461]
[1765815832376,0.22968441,87076.0,87073.0,0.01148461]
[1765815832577,0.22968441,87076.0,87072.0,0.01148474]
[1765815832578,0.22969009,87074.0,87072.0,0.01148474]
[1765815832783,0.2907,87078.0,87073.0,0.02990612]
[1765815833028,0.22967391,87080.0,87075.0,0.01148435]
[1765815833218,0.24116433,87078.0,87075.0,0.22968699]
[1765815833586,0.24116051,87079.0,87075.0,0.2411714]
[1765815833912,0.22968061,87078.0,87076.0,0.0767916]
[1765815834109,0.22968968,87074.0,87073.0,0.003]
[1765815834318,0.01148501,87070.0,87066.0,0.22971032]
[1765815834518,0.24117709,87073.0,87070.0,0.22970023]
[1765815834727,0.22968441,87076.0,87075.0,0.002]
[1765815835071,1.66652875,87076.0,87075.0,0.002]
[1765815835269,1.70729557,87076.0,87075.0,0.002]
[1765815835406,1.67635123,87076.0,87075.0,0.002]
[1765815835587,1.56115123,87076.0,87075.0,0.002]
[1765815835953,0.2297319,87058.0,87057.0,0.00161287]
[1765815836168,0.2297319,87058.0,87057.0,0.05117001]
[1765815836539,0.22975158,87051.0,87047.0,0.01148804]
[1765815836708,0.24123512,87052.0,87048.0,0.01148791]
[1765815836913,0.24123512,87052.0,87050.0,0.00201667]
[1765815837155,0.22974271,87054.0,87049.0,0.01148778]
[1765815837367,0.22974795,87052.0,87051.0,0.00198514]
[1765815837616,0.22974795,87052.0,87051.0,0.02975384]
[1765815837926,0.24122719,87055.0,87052.0,0.22974737]
[1765815838157,0.22974773,87052.0,87051.0,0.0277687]
[1765815838365,0.01148712,87054.0,87051.0,0.25751887]
[1765815838366,0.24123001,87054.0,87051.0,0.25751887]
[1765815838561,0.22974509,87053.0,87052.0,0.07629899]
[1765815838945,0.22974773,87052.0,87051.0,0.001]
[1765815839355,0.22974509,87053.0,87051.0,0.001]
[1765815839766,0.22974773,87052.0,87051.0,0.001]
[1765815839981,0.22975582,87049.0,87046.0,0.24125148]
[1765815840262,0.24124632,87048.0,87043.0,0.24125772]
[1765815840476,0.22976885,87044.0,87043.0,0.05164735]
[1765815840689,0.2297663,87045.0,87043.0,0.00161287]
[1765815840907,0.2297543,87050.0,87038.0,0.01890038]
[1765815840908,0.01148606,87062.0,87056.0,0.01148685]
[1765815841129,0.22970701,87068.0,87060.0,0.01148633]
[1765815841338,0.01148461,87073.0,87069.0,0.01148514]
[1765815841543,0.24117533,87074.0,87071.0,0.01148488]
[1765815841720,0.22969309,87073.0,87071.0,0.01148488]
[1765815841986,0.24117324,87075.0,87072.0,0.05168318]
[1765815842190,0.22969037,87074.0,87072.0,0.05168318]
[1765815842431,0.2297187,87063.0,87061.0,0.02658126]
[1765815842586,0.24119769,87066.0,87062.0,0.24120497]
[1765815842789,0.01148567,87065.0,87062.0,0.24120691]
[1765815843112,0.01148501,87070.0,87065.0,0.01148567]
[1765815843351,0.03093989,87078.0,87070.0,0.24118286]
[1765815843352,0.01148435,87075.0,87070.0,0.24118286]
[1765815843547,0.2411618,87079.0,87075.0,0.22968673]
[1765815843764,0.01148422,87076.0,87073.0,0.24117532]
[1765815843892,0.24117453,87074.0,87071.0,0.22969701]
[1765815844092,0.01148422,87076.0,87072.0,0.01148474]
[1765815844458,0.2296875,87075.0,87073.0,0.05377821]
[1765815844822,0.2296875,87075.0,87074.0,0.00126007]
[1765815845139,1.2296875,87075.0,87074.0,0.00126007]
[1765815845341,1.26795016,87075.0,87074.0,0.00126007]
[1765815845519,1.26127016,87075.0,87074.0,0.00126007]
[1765815846319,0.79597016,87075.0,87074.0,0.00126007]
[1765815846495,0.69597016,87075.0,87074.0,0.00126007]
[1765815847044,1.16127016,87075.0,87074.0,0.00126007]
[1765815847243,0.72636016,87075.0,87074.0,0.00126007]
[1765815847456,0.01148408,87077.0,87074.0,0.00126007]
[1765815847658,0.22968635,87076.0,87075.0,0.00681248]
[1765815847859,0.02477406,87080.0,87079.0,0.2296765]
[1765815848037,0.01148329,87083.0,87077.0,0.04833408]
[1765815848238,0.01148342,87082.0,87077.0,0.01148408]
[1765815848487,0.01148329,87083.0,87078.0,0.01148395]
[1765815848695,0.24115219,87082.0,87079.0,0.27783978]
[1765815848999,0.22967136,87081.0,87079.0,0.03667948]
[1765815849200,0.22967122,87081.0,87079.0,0.03667948]
[1765815849542,0.01148329,87083.0,87079.0,0.03667948]
[1765815849752,0.24114396,87085.0,87082.0,0.01148342]
[1765815849995,0.0114829,87086.0,87083.0,0.01148329]
[1765815850192,0.22966588,87084.0,87081.0,0.2411547]
[1765815850397,0.01148316,87084.0,87075.0,0.00842535]
[1765815850570,0.22968177,87077.0,87075.0,0.00842535]
[1765815850751,0.01148395,87078.0,87076.0,0.22968352]
[1765815850960,0.22968191,87077.0,87075.0,0.00842535]
[1765815851368,0.01148395,87078.0,87075.0,0.0199097]
[1765815851580,0.22967909,87080.0,87077.0,0.24116569]
[1765815851581,0.24116007,87080.0,87077.0,0.24116569]
[1765815852226,0.22968441,87076.0,87075.0,0.00842535]
[1765815852465,0.001,87077.0,87075.0,0.00842535]
[1765815852669,0.001,87077.0,87076.0,0.23670942]
[1765815852878,0.001,87077.0,87076.0,0.27355942]
[1765815853067,0.2907,87091.0,87086.0,0.0114829]
[1765815853280,0.01148211,87092.0,87082.0,0.01148342]
[1765815853521,0.01148263,87088.0,87084.0,0.01148316]